fUST/lending_fUST_20251231
["ID","MTS","AMOUNT","RATE_DAILY","PERIOD"]
[400146963,1767154175458,-4446.64872559,0.00011776,2]
[400146969,1767154190705,-290.27301704,0.0001182,2]
[400146973,1767154202665,300.0,0.0001182,2]
[400146975,1767154207446,-300.0,0.00011821,2]
[400146976,1767154207487,-300.0,0.00011821,2]
[400146977,1767154207525,-300.0,0.00011821,2]
[400146978,1767154207563,-300.0,0.00011821,2]
[400146979,1767154207600,-300.0,0.00011821,2]
[400146980,1767154207841,-300.0,0.00011821,2]
[400146981,1767154207878,-300.0,0.00011821,2]
[400146982,1767154207913,-300.0,0.00011821,2]
[400146983,1767154207947,-300.0,0.00011821,2]
[400146984,1767154207977,-300.0,0.00011821,2]
[400146985,1767154208011,-300.0,0.00011821,2]
[400146986,1767154208046,-300.0,0.00011821,2]
[400146987,1767154208082,-300.0,0.00011821,2]
[400146988,1767154208119,-300.0,0.00011821,2]
[400146989,1767154208157,-300.0,0.00011821,2]
[400146990,1767154208195,-400.01,0.00011821,2]
[400146991,1767154208443,-199.99,0.00011821,2]
[400146992,1767154208476,-587.0,0.00011821,2]
[400146994,1767154211895,-1200.0,0.0001182,2]
[400147044,1767154232514,-429.3,0.00012329,2]
[400147046,1767154232524,-36.59833563,0.00012329,2]
[400147055,1767154232625,-321.15166437,0.00012329,2]
[400147057,1767154232636,-298.12,0.00012329,2]
[400147059,1767154232646,-248.44,0.00012329,2]
[400147061,1767154232657,-2150.74212161,0.00012548,2]
[400147356,1767154238139,-1042.14186049,0.00012548,2]
[400147358,1767154238149,-1680.0,0.00012728,2]
[400147360,1767154238162,-965.52,0.00012794,2]
[400147362,1767154238172,-6312.33813951,0.000129,2]
[400147364,1767154238184,-2084.42943746,0.000129,2]
[400147366,1767154238196,-2222.64700734,0.000129,2]
[400147369,1767154238213,-729.50340434,0.000129,2]
[400147371,1767154238223,-420.0,0.00012978,2]
[400147373,1767154238235,-1680.0,0.00013002,2]
[400147375,1767154238244,-300.0,0.00013157,2]
[400147377,1767154238254,-300.0,0.00013157,2]
[400147379,1767154238264,-300.0,0.00013157,2]
[400147381,1767154238273,-300.0,0.00013157,2]
[400147383,1767154238282,-300.0,0.00013157,2]
[400147385,1767154238291,-300.0,0.00013157,2]
[400147386,1767154238301,-300.0,0.00013157,2]
[400147388,1767154238311,-300.0,0.00013157,2]
[400147390,1767154238321,-300.0,0.00013157,2]
[400147392,1767154238330,-300.0,0.00013157,2]
[400147394,1767154238340,-300.0,0.00013157,2]
[400147396,1767154238349,-300.0,0.00013157,2]
[400147398,1767154238358,-300.0,0.00013157,2]
[400147400,1767154238368,-300.0,0.00013157,2]
[400147402,1767154238377,-300.0,0.00013157,2]
[400147404,1767154238386,-500.0,0.00013273,2]
[400147406,1767154238395,-500.0,0.00013273,2]
[400147408,1767154238404,-500.0,0.00013273,2]
[400147409,1767154238414,-500.0,0.00013273,2]
[400147411,1767154238423,-530.18035564,0.00013273,2]
[400147413,1767154238433,-500.0,0.00013273,2]
[400147415,1767154238442,-500.0,0.00013273,2]
[400147417,1767154238452,-500.0,0.00013273,2]
[400147419,1767154238462,-500.0,0.00013273,2]
[400147421,1767154238471,-500.0,0.00013273,2]
[400147423,1767154238481,-500.0,0.00013273,2]
[400147425,1767154238491,-500.0,0.00013273,2]
[400147427,1767154238501,-500.0,0.00013273,2]
[400147429,1767154238509,-520.05984388,0.00013273,2]
[400147431,1767154238519,-500.0,0.00013273,2]
[400147433,1767154238528,-500.0,0.00013273,2]
[400147435,1767154238538,-500.0,0.00013273,2]
[400147437,1767154238547,-502.50925578,0.00013273,2]
[400147438,1767154238557,-500.0,0.00013273,2]
[400147439,1767154238566,-500.0,0.00013273,2]
[400147440,1767154238576,-500.0,0.00013273,2]
[400147441,1767154238586,-500.0,0.00013273,2]
[400147442,1767154238595,-500.0,0.00013273,2]
[400147443,1767154238604,-529.84736886,0.00013273,2]
[400147444,1767154238614,-500.0,0.00013273,2]
[400147445,1767154238623,-500.0,0.00013273,2]
[400147446,1767154238632,-500.0,0.00013273,2]
[400147447,1767154238642,-500.0,0.00013273,2]
[400147448,1767154238651,-500.0,0.00013273,2]
[400147449,1767154238662,-500.0,0.00013273,2]
[400147450,1767154238671,-500.0,0.00013273,2]
[400147451,1767154238681,-167.36910648,0.00013273,2]
[400147452,1767154238693,-500.0,0.00013273,2]
[400147453,1767154238703,-500.0,0.00013273,2]
[400147454,1767154238712,-500.0,0.00013273,2]
[400147456,1767154238721,-500.0,0.00013273,2]
[400147457,1767154238731,-205.30476225,0.00013273,2]
[400147458,1767154238741,-500.0,0.00013273,2]
[400147459,1767154238750,-500.0,0.00013273,2]
[400147460,1767154238760,-500.0,0.00013273,2]
[400147461,1767154238770,-500.0,0.00013273,2]
[400147462,1767154238780,-500.0,0.00013273,2]
[400147463,1767154238790,-500.0,0.00013273,2]
[400147464,1767154238800,-500.0,0.00013273,2]
[400147465,1767154238810,-500.0,0.00013273,2]
[400147466,1767154238821,-500.0,0.00013273,2]
[400147467,1767154238830,-500.0,0.00013273,2]
[400147468,1767154238839,-500.0,0.00013273,2]
[400147469,1767154238849,-500.0,0.00013273,2]
[400147470,1767154238859,-459.90209075,0.00013273,2]
[400147471,1767154238868,-494.0031485,0.00013273,2]
[400147472,1767154238878,-232.27795913,0.00013273,2]
[400147473,1767154238887,-500.0,0.00013273,2]
[400147474,1767154238899,-500.0,0.00013273,2]
[400147475,1767154238908,-500.0,0.00013273,2]
[400147476,1767154238919,-50000.0,0.00013273,2]
[400147477,1767154238928,-500.0,0.00013273,2]
[400147478,1767154238938,-500.0,0.00013273,2]
[400147479,1767154238948,-500.0,0.00013273,2]
[400147480,1767154238957,-500.0,0.00013273,2]
[400147481,1767154238967,-600.0,0.00013419,2]
[400147482,1767154238977,-322.89656599,0.00013591,2]
[400147483,1767154238987,-300.0,0.00013673,2]
[400147484,1767154238997,-10000.0,0.00013696,2]
[400147485,1767154239007,-302.87133682,0.00013698,2]
[400147486,1767154239016,-500.0,0.00013698,2]
[400147487,1767154239026,-515.15733931,0.00013698,2]
[400147488,1767154239036,-500.0,0.00013698,2]
[400147489,1767154239046,-192.79997823,0.00013698,2]
[400147490,1767154239055,-190.40044785,0.00013698,2]
[400147491,1767154239066,-1401.94,0.00013698,2]
[400147492,1767154239075,-1401.94,0.00013698,2]
[400147493,1767154239085,-1401.94,0.00013698,2]
[400147494,1767154239095,-1401.94,0.00013698,2]
[400147495,1767154239105,-1401.94,0.00013698,2]
[400147496,1767154239115,-1401.94,0.00013698,2]
[400147497,1767154239125,-1401.94,0.00013698,2]
[400147498,1767154239134,-1401.94,0.00013698,2]
[400147499,1767154239143,-1401.94,0.00013698,2]
[400147500,1767154239155,-1401.94,0.00013698,2]
[400147501,1767154239165,-1401.94,0.00013698,2]
[400147502,1767154239175,-1401.94,0.00013698,2]
[400147503,1767154239184,-1401.94,0.00013698,2]
[400147504,1767154239195,-1401.94,0.00013698,2]
[400147505,1767154239205,-1401.94,0.00013698,2]
[400147506,1767154239214,-1461.96,0.00013698,2]
[400147507,1767154239223,-1461.96,0.00013698,2]
[400147508,1767154239235,-1461.96,0.00013698,2]
[400147509,1767154239244,-1461.96,0.00013698,2]
[400147510,1767154239253,-1461.96,0.00013698,2]
[400147511,1767154239263,-1461.96,0.00013698,2]
[400147512,1767154239273,-1461.96,0.00013698,2]
[400147513,1767154239284,-1461.96,0.00013698,2]
[400147514,1767154239293,-1461.96,0.00013698,2]
[400147515,1767154239303,-1461.96,0.00013698,2]
[400147516,1767154239312,-1461.96,0.00013698,2]
[400147517,1767154239321,-1461.96,0.00013698,2]
[400147518,1767154239331,-1461.96,0.00013698,2]
[400147519,1767154239340,-500.0,0.00013698,2]
[400147520,1767154239349,-262.16767073,0.00013698,2]
[400147521,1767154239359,-500.26,0.00013699,2]
[400147522,1767154239369,-12249.2223288,0.00013699,2]
[400147523,1767154239378,-1000.0,0.00013699,2]
[400147524,1767154239388,-500.0,0.00013699,2]
[400147525,1767154239397,-500.0,0.00013699,2]
[400147526,1767154239407,-500.0,0.00013699,2]
[400147527,1767154239417,-159.68059141,0.00013699,2]
[400147528,1767154239426,-500.0,0.00013699,2]
[400147529,1767154239435,-500.0,0.00013699,2]
[400147530,1767154239445,-500.0,0.00013699,2]
[400147531,1767154239454,-500.0,0.00013699,2]
[400147532,1767154239464,-500.0,0.00013699,2]
[400147533,1767154239474,-500.0,0.00013699,2]
[400147534,1767154239483,-500.0,0.00013699,2]
[400147535,1767154239492,-500.0,0.00013699,2]
[400147536,1767154239501,-160.15137988,0.00013699,2]
[400147537,1767154239511,-565.555714,0.00013699,2]
[400147538,1767154239520,-500.0,0.00013699,2]
[400147539,1767154239529,-500.0,0.00013699,2]
[400147540,1767154239539,-150.35034149,0.00013699,2]
[400147541,1767154239548,-500.0,0.00013699,2]
[400147542,1767154239557,-500.0,0.00013699,2]
[400147543,1767154239566,-500.0,0.00013699,2]
[400147544,1767154239575,-500.0,0.00013699,2]
[400147545,1767154239584,-500.0,0.00013699,2]
[400147546,1767154239593,-587.30545204,0.00013699,2]
[400147547,1767154239602,-500.0,0.00013699,2]
[400147548,1767154239612,-500.0,0.00013699,2]
[400147549,1767154239621,-303.93264249,0.00013699,2]
[400147550,1767154239769,-500.0,0.00013699,2]
[400147551,1767154239780,-500.0,0.00013699,2]
[400147552,1767154239789,-500.0,0.00013699,2]
[400147553,1767154239799,-242.87306652,0.00013699,2]
[400147554,1767154239808,-500.0,0.00013699,2]
[400147555,1767154239818,-500.0,0.00013699,2]
[400147556,1767154239827,-260.2481779,0.00013699,2]
[400147557,1767154239837,-298.53483888,0.00013699,2]
[400147558,1767154239847,-158.38534465,0.00013699,2]
[400147559,1767154239856,-346.46150426,0.00013699,2]
[400147560,1767154239866,-500.0,0.00013699,2]
[400147561,1767154239875,-500.0,0.00013699,2]
[400147562,1767154239884,-500.0,0.00013699,2]
[400147563,1767154239893,-500.0,0.00013699,2]
[400147564,1767154239903,-500.0,0.00013699,2]
[400147565,1767154239913,-500.0,0.00013699,2]
[400147566,1767154239922,-160.3309554,0.00013699,2]
[400147567,1767154239931,-500.0,0.00013699,2]
[400147568,1767154239941,-158.38533297,0.00013699,2]
[400147569,1767154239950,-237.8458189,0.00013699,2]
[400147570,1767154239959,-500.0,0.00013699,2]
[400147571,1767154239969,-500.0,0.00013699,2]
[400147572,1767154239978,-500.0,0.00013699,2]
[400147573,1767154239987,-188.42009972,0.00013699,2]
[400147574,1767154239996,-500.0,0.00013699,2]
[400147575,1767154240005,-158.39206841,0.00013699,2]
[400147576,1767154240014,-158.38532202,0.00013699,2]
[400147577,1767154240023,-500.0,0.00013699,2]
[400147578,1767154240032,-500.0,0.00013699,2]
[400147579,1767154240041,-500.0,0.00013699,2]
[400147580,1767154240051,-500.0,0.00013699,2]
[400147581,1767154240060,-500.0,0.00013699,2]
[400147582,1767154240070,-500.0,0.00013699,2]
[400147583,1767154240079,-500.0,0.00013699,2]
[400147584,1767154240089,-500.0,0.00013699,2]
[400147585,1767154240098,-500.0,0.00013699,2]
[400147586,1767154240109,-500.0,0.00013699,2]
[400147587,1767154240118,-165.03764715,0.00013699,2]
[400147588,1767154240127,-500.0,0.00013699,2]
[400147589,1767154240138,-160.18745103,0.00013699,2]
[400147590,1767154240147,-158.38534385,0.00013699,2]
[400147591,1767154240159,-500.0,0.00013699,2]
[400147592,1767154240168,-158.38534191,0.00013699,2]
[400147594,1767154240178,-307.59957655,0.00013699,2]
[400147596,1767154240188,-500.0,0.00013699,2]
[400147598,1767154240198,-500.0,0.00013699,2]
[400147600,1767154240207,-500.0,0.00013699,2]
[400147602,1767154240217,-500.0,0.00013699,2]
[400147604,1767154240226,-158.3853059,0.00013699,2]
[400147606,1767154240236,-500.0,0.00013699,2]
[400147608,1767154240246,-500.0,0.00013699,2]
[400147610,1767154240255,-309.28633635,0.00013699,2]
[400147612,1767154240265,-500.0,0.00013699,2]
[400147614,1767154240275,-500.0,0.00013699,2]
[400147616,1767154240285,-500.0,0.00013699,2]
[400147618,1767154240295,-500.0,0.00013699,2]
[400147620,1767154240304,-158.18512633,0.00013699,2]
[400147622,1767154240314,-500.0,0.00013699,2]
[400147624,1767154240323,-416.75445415,0.00013699,2]
[400147626,1767154240332,-260.28159851,0.00013699,2]
[400147628,1767154240341,-158.38886572,0.00013699,2]
[400147630,1767154240351,-500.0,0.00013699,2]
[400147632,1767154240361,-158.18512013,0.00013699,2]
[400147634,1767154240371,-500.0,0.00013699,2]
[400147636,1767154240380,-157.18386067,0.00013699,2]
[400147638,1767154240390,-500.0,0.00013699,2]
[400147640,1767154240399,-500.0,0.00013699,2]
[400147642,1767154240408,-500.0,0.00013699,2]
[400147644,1767154240417,-500.0,0.00013699,2]
[400147646,1767154240426,-525.82485317,0.00013699,2]
[400147648,1767154240436,-500.0,0.00013699,2]
[400147650,1767154240445,-500.0,0.00013699,2]
[400147652,1767154240454,-500.0,0.00013699,2]
[400147654,1767154240463,-178.08460977,0.00013699,2]
[400147656,1767154240472,-500.0,0.00013699,2]
[400147658,1767154240482,-500.0,0.00013699,2]
[400147660,1767154240491,-500.0,0.00013699,2]
[400147662,1767154240500,-500.0,0.00013699,2]
[400147664,1767154240509,-500.0,0.00013699,2]
[400147666,1767154240519,-500.0,0.00013699,2]
[400147668,1767154240527,-500.0,0.00013699,2]
[400147670,1767154240536,-500.0,0.00013699,2]
[400147672,1767154240546,-500.0,0.00013699,2]
[400147674,1767154240555,-158.10807846,0.00013699,2]
[400147676,1767154240564,-500.0,0.00013699,2]
[400147678,1767154240573,-163.65866633,0.00013699,2]
[400147680,1767154240582,-500.57498562,0.00013699,2]
[400147682,1767154240591,-500.0,0.00013699,2]
[400147684,1767154240601,-500.0,0.00013699,2]
[400147686,1767154240612,-500.0,0.00013699,2]
[400147687,1767154240622,-500.0,0.00013699,2]
[400147689,1767154240631,-500.0,0.00013699,2]
[400147691,1767154240640,-500.0,0.00013699,2]
[400147693,1767154240649,-213.3181846,0.00013699,2]
[400147696,1767154240658,-500.0,0.00013699,2]
[400147699,1767154240667,-500.0,0.00013699,2]
[400147701,1767154240677,-500.0,0.00013699,2]
[400147703,1767154240686,-500.0,0.00013699,2]
[400147705,1767154240695,-500.0,0.00013699,2]
[400147707,1767154240704,-1401.94,0.0001382,2]
[400147709,1767154240714,-1401.94,0.0001382,2]
[400147711,1767154240723,-1461.96,0.0001382,2]
[400147713,1767154240732,-1461.96,0.0001382,2]
[400147715,1767154240741,-1000.0,0.00013821,2]
[400147717,1767154240750,-1000.0,0.00013821,2]
[400147719,1767154240760,-1000.0,0.00013821,2]
[400147721,1767154240769,-1000.0,0.00013821,2]
[400147723,1767154240778,-177.12142034,0.00013821,2]
[400147725,1767154240787,-1000.0,0.00013821,2]
[400147727,1767154240797,-1000.0,0.00013821,2]
[400147729,1767154240806,-585.46093203,0.00013821,2]
[400147731,1767154240815,-1000.0,0.00013821,2]
[400147733,1767154240824,-1000.0,0.00013821,2]
[400147735,1767154240833,-1000.0,0.00013821,2]
[400147737,1767154240843,-1000.0,0.00013821,2]
[400147739,1767154240852,-1000.0,0.00013821,2]
[400147741,1767154240862,-1000.0,0.00013821,2]
[400147743,1767154240871,-1000.0,0.00013821,2]
[400147745,1767154240879,-1000.0,0.00013821,2]
[400147747,1767154240889,-1000.0,0.00013821,2]
[400147749,1767154240897,-1000.0,0.00013821,2]
[400147750,1767154240907,-381.16221649,0.00013821,2]
[400147752,1767154240916,-913.99757981,0.00013821,2]
[400147754,1767154240925,-1000.0,0.00013821,2]
[400147756,1767154240934,-1044.63270575,0.00013821,2]
[400147758,1767154240943,-1000.0,0.00013821,2]
[400147760,1767154240952,-502.45533374,0.00013821,2]
[400147762,1767154240962,-1000.0,0.00013821,2]
[400147764,1767154240971,-1000.0,0.00013821,2]
[400147766,1767154240980,-160.63497667,0.00013821,2]
[400147768,1767154240991,-815.88685405,0.00013821,2]
[400147770,1767154240999,-1000.0,0.00013821,2]
[400147772,1767154241008,-1000.0,0.00013821,2]
[400147774,1767154241017,-1000.0,0.00013821,2]
[400147776,1767154241026,-1000.0,0.00013821,2]
[400147778,1767154241035,-1000.0,0.00013821,2]
[400147780,1767154241044,-1000.0,0.00013821,2]
[400147782,1767154241054,-1000.0,0.00013821,2]
[400147784,1767154241063,-1000.0,0.00013821,2]
[400147786,1767154241072,-1000.0,0.00013821,2]
[400147788,1767154241081,-1000.0,0.00013821,2]
[400147791,1767154241092,-1000.0,0.00013821,2]
[400147793,1767154241101,-1000.0,0.00013821,2]
[400147794,1767154241110,-1000.0,0.00013821,2]
[400147796,1767154241119,-1000.0,0.00013821,2]
[400147798,1767154241128,-1000.0,0.00013821,2]
[400147800,1767154241137,-1000.0,0.00013821,2]
[400147802,1767154241146,-1000.0,0.00013821,2]
[400147804,1767154241160,-501.55479895,0.00013821,2]
[400147806,1767154241169,-1000.0,0.00013821,2]
[400147808,1767154241178,-1102.47879957,0.00013821,2]
[400147810,1767154241187,-1000.0,0.00013821,2]
[400147812,1767154241198,-686.16786472,0.00013821,2]
[400147814,1767154241207,-220.88,0.00013873,2]
[400147816,1767154241217,-220.88,0.00013873,2]
[400147818,1767154241225,-220.88,0.00013873,2]
[400147821,1767154241236,-220.88,0.00013873,2]
[400147823,1767154241245,-220.88,0.00013873,2]
[400147825,1767154241255,-220.88,0.00013873,2]
[400147827,1767154241263,-220.88,0.00013873,2]
[400147829,1767154241272,-163.48,0.00013873,2]
[400147831,1767154241281,-1931.03,0.00013927,2]
[400147832,1767154241291,-163.51788502,0.00013973,2]
[400147834,1767154241300,-359.0,0.00013979,2]
[400147836,1767154241309,-1461.96,0.00014177,2]
[400147838,1767154241318,-600.0,0.00014221,2]
[400147840,1767154241327,-1401.94,0.00014246,2]
[400147842,1767154241336,-1401.94,0.00014246,2]
[400147844,1767154241345,-1401.94,0.00014246,2]
[400147846,1767154241355,-1401.94,0.00014246,2]
[400147848,1767154241364,-1401.94,0.00014246,2]
[400147850,1767154241373,-1401.94,0.00014246,2]
[400147853,1767154241383,-1402.08191311,0.00014246,2]
[400147855,1767154241393,-1461.96,0.00014246,2]
[400147856,1767154241402,-1461.96,0.00014246,2]
[400147859,1767154241411,-1000.0,0.00014247,2]
[400147861,1767154241420,-500.4478313,0.00014247,2]
[400147862,1767154241430,-1000.0,0.00014247,2]
[400147864,1767154241439,-500.68443154,0.00014247,2]
[400147866,1767154241448,-1000.0,0.00014247,2]
[400147869,1767154241457,-1000.0,0.00014247,2]
[400147870,1767154241467,-1000.0,0.00014247,2]
[400147873,1767154241476,-1000.0,0.00014247,2]
[400147874,1767154241486,-1000.0,0.00014247,2]
[400147876,1767154241496,-1000.0,0.00014247,2]
[400147878,1767154241505,-1000.0,0.00014247,2]
[400147880,1767154241514,-1000.0,0.00014247,2]
[400147882,1767154241523,-1000.0,0.00014247,2]
[400147884,1767154241532,-911.90264951,0.00014247,2]
[400147886,1767154241541,-251.84601956,0.00014247,2]
[400147888,1767154241550,-433.15519118,0.00014247,2]
[400147890,1767154241559,-1000.0,0.00014247,2]
[400147892,1767154241568,-1000.0,0.00014247,2]
[400147894,1767154241577,-609.17214565,0.00014247,2]
[400147896,1767154241586,-1000.0,0.00014247,2]
[400147898,1767154241596,-1000.0,0.00014247,2]
[400147900,1767154241606,-1000.0,0.00014247,2]
[400147902,1767154241616,-1000.0,0.00014247,2]
[400147904,1767154241625,-1000.0,0.00014247,2]
[400147906,1767154241634,-1000.0,0.00014247,2]
[400147908,1767154241643,-1000.0,0.00014247,2]
[400147910,1767154241653,-500.48099046,0.00014247,2]
[400147912,1767154241662,-297.63479171,0.00014247,2]
[400147914,1767154241671,-1000.0,0.00014247,2]
[400147916,1767154241680,-1000.0,0.00014247,2]
[400147918,1767154241689,-1000.0,0.00014247,2]
[400147920,1767154241699,-1000.0,0.00014247,2]
[400147922,1767154241708,-1000.0,0.00014247,2]
[400147924,1767154241717,-1000.0,0.00014247,2]
[400147926,1767154241726,-1000.0,0.00014247,2]
[400147928,1767154241736,-1000.75482131,0.00014247,2]
[400147930,1767154241746,-1000.0,0.00014247,2]
[400147932,1767154241755,-1000.0,0.00014247,2]
[400147934,1767154241764,-1000.0,0.00014247,2]
[400147936,1767154241774,-1000.0,0.00014247,2]
[400147938,1767154241783,-1000.0,0.00014247,2]
[400147940,1767154241792,-688.75934812,0.00014247,2]
[400147942,1767154241803,-1000.0,0.00014247,2]
[400147944,1767154241812,-1002.4340095,0.00014247,2]
[400147946,1767154241821,-1000.0,0.00014247,2]
[400147948,1767154241830,-1005.9697834,0.00014247,2]
[400147950,1767154241840,-1000.0,0.00014247,2]
[400147952,1767154241850,-1000.0,0.00014247,2]
[400147954,1767154241859,-1000.0,0.00014247,2]
[400147956,1767154241869,-1000.0,0.00014247,2]
[400147959,1767154241878,-267.6781502,0.00014247,2]
[400147960,1767154241887,-1000.0,0.00014247,2]
[400147962,1767154241897,-1000.0,0.00014247,2]
[400147965,1767154241906,-1000.0,0.00014247,2]
[400147966,1767154241916,-1000.0,0.00014247,2]
[400147968,1767154241925,-1000.0,0.00014247,2]
[400147970,1767154241934,-866.45646788,0.00014247,2]
[400147972,1767154241944,-1000.0,0.00014247,2]
[400147974,1767154241954,-1000.0,0.00014247,2]
[400147976,1767154241963,-495.63847364,0.00014247,2]
[400147978,1767154241973,-345.96405937,0.00014247,2]
[400147980,1767154241982,-1000.0,0.00014247,2]
[400147983,1767154241991,-1000.0,0.00014247,2]
[400147985,1767154242003,-1000.0,0.00014247,2]
[400147987,1767154242012,-1000.0,0.00014247,2]
[400147988,1767154242021,-1000.0,0.00014247,2]
[400147990,1767154242030,-1000.0,0.00014247,2]
[400147992,1767154242038,-1000.0,0.00014247,2]
[400147994,1767154242047,-1000.0,0.00014247,2]
[400147996,1767154242057,-1000.0,0.00014247,2]
[400147998,1767154242066,-1000.0,0.00014247,2]
[400148000,1767154242075,-1000.0,0.00014247,2]
[400148002,1767154242084,-941.53284855,0.00014247,2]
[400148004,1767154242093,-295.43360933,0.00014247,2]
[400148006,1767154242103,-1000.0,0.00014247,2]
[400148008,1767154242112,-1000.0,0.00014247,2]
[400148011,1767154242123,-1000.0,0.00014247,2]
[400148012,1767154242132,-1000.0,0.00014247,2]
[400148015,1767154242141,-1000.0,0.00014247,2]
[400148016,1767154242150,-1000.0,0.00014247,2]
[400148018,1767154242163,-587.0,0.0001425,2]
[400148020,1767154242172,-2351.0,0.00014302,2]
[400148022,1767154242182,-1461.96,0.00014368,2]
[400148024,1767154242191,-1461.96,0.00014368,2]
[400148026,1767154242201,-1461.96,0.00014368,2]
[400148028,1767154242210,-1461.96,0.00014368,2]
[400148030,1767154242219,-1461.96,0.00014368,2]
[400148032,1767154242229,-1462.11503887,0.00014368,2]
[400148034,1767154242240,-1500.0,0.00014368,2]
[400148037,1767154242249,-1282.65977069,0.00014368,2]
[400148039,1767154242258,-1500.0,0.00014368,2]
[400148041,1767154242268,-1500.0,0.00014368,2]
[400148043,1767154242277,-1500.0,0.00014368,2]
[400148045,1767154242287,-1500.0,0.00014368,2]
[400148046,1767154242296,-696.20087533,0.00014368,2]
[400148048,1767154242305,-1500.0,0.00014368,2]
[400148050,1767154242314,-1500.0,0.00014368,2]
[400148052,1767154242324,-1500.0,0.00014368,2]
[400148054,1767154242333,-1500.0,0.00014368,2]
[400148056,1767154242342,-1252.44576455,0.00014368,2]
[400148058,1767154242351,-1500.0,0.00014368,2]
[400148060,1767154242360,-1500.0,0.00014368,2]
[400148062,1767154242370,-1500.0,0.00014368,2]
[400148064,1767154242379,-1500.0,0.00014368,2]
[400148066,1767154242388,-1500.0,0.00014368,2]
[400148068,1767154242398,-1500.0,0.00014368,2]
[400148070,1767154242407,-1506.37696416,0.00014368,2]
[400148072,1767154242416,-1500.0,0.00014368,2]
[400148074,1767154242426,-1500.0,0.00014368,2]
[400148076,1767154242435,-1500.0,0.00014368,2]
[400148078,1767154242443,-1500.0,0.00014368,2]
[400148080,1767154242453,-1500.0,0.00014368,2]
[400148082,1767154242462,-190.31177109,0.00014368,2]
[400148084,1767154242471,-1324.83546284,0.00014368,2]
[400148086,1767154242480,-1500.0,0.00014368,2]
[400148088,1767154242489,-1500.0,0.00014368,2]
[400148090,1767154242499,-1500.0,0.00014368,2]
[400148092,1767154242508,-1500.0,0.00014368,2]
[400148094,1767154242518,-349.3977641,0.00014368,2]
[400148096,1767154242527,-561.98334321,0.00014368,2]
[400148098,1767154242536,-1500.0,0.00014368,2]
[400148100,1767154242546,-1160.40400037,0.00014368,2]
[400148102,1767154242555,-1500.0,0.00014368,2]
[400148104,1767154242564,-1500.0,0.00014368,2]
[400148106,1767154242572,-1500.0,0.00014368,2]
[400148108,1767154242581,-1503.81920107,0.00014368,2]
[400148110,1767154242591,-1500.0,0.00014368,2]
[400148112,1767154242600,-151.0,0.00014403,2]
[400148114,1767154242609,-162.62076672,0.00014403,2]
[400148116,1767154242618,-151.0,0.00014403,2]
[400148118,1767154242627,-151.50260762,0.00014403,2]
[400148120,1767154242636,-514.84070869,0.00014403,2]
[400148122,1767154242645,-500.0,0.00014403,2]
[400148124,1767154242654,-500.0,0.00014403,2]
[400148126,1767154242663,-500.0,0.00014403,2]
[400148127,1767154242672,-500.0,0.00014403,2]
[400148129,1767154242680,-500.0,0.00014403,2]
[400148131,1767154242689,-500.0,0.00014403,2]
[400148133,1767154242698,-500.0,0.00014403,2]
[400148136,1767154242707,-500.0,0.00014403,2]
[400148139,1767154242717,-151.0,0.00014403,2]
[400148142,1767154242727,-500.0,0.00014403,2]
[400148144,1767154242736,-151.0,0.00014403,2]
[400148147,1767154242745,-500.0,0.00014403,2]